fUST/lending_fUST_20250522
["ID","MTS","AMOUNT","RATE_DAILY","PERIOD"]
[361924504,1747893041983,-365.01,0.00022465,2]
[361924505,1747893041992,-442.68815222,0.00022465,2]
[361924506,1747893042003,-430.0,0.00022465,2]
[361924507,1747893042014,-430.0,0.00022465,2]
[361924508,1747893042023,-430.0,0.00022465,2]
[361924509,1747893042034,-430.0,0.00022465,2]
[361924510,1747893042044,-430.0,0.00022465,2]
[361924511,1747893042053,-430.0,0.00022465,2]
[361924512,1747893042063,-430.0,0.00022465,2]
[361924513,1747893042072,-430.0,0.00022465,2]
[361924514,1747893042081,-430.0,0.00022465,2]
[361924515,1747893042091,-527.87,0.00022465,2]
[361924516,1747893042100,-430.0,0.00022465,2]
[361924517,1747893042110,-430.0,0.00022465,2]
[361924518,1747893042121,-430.0,0.00022465,2]
[361924519,1747893042131,-763.96,0.00022465,2]
[361924520,1747893042143,-15459.72,0.00022465,2]
[361924521,1747893042153,-430.0,0.00022465,2]
[361924522,1747893042163,-467.8,0.00022465,2]
[361924523,1747893042172,-430.0,0.00022465,2]
[361924524,1747893042183,-430.0,0.00022465,2]
[361924525,1747893042192,-430.0,0.00022465,2]
[361924526,1747893042202,-423.96,0.00022465,2]
[361924527,1747893042212,-430.0,0.00022465,2]
[361924528,1747893042223,-430.0,0.00022465,2]
[361924529,1747893042233,-613.58,0.00022465,2]
[361924530,1747893042243,-430.0,0.00022465,2]
[361924531,1747893042252,-430.0,0.00022465,2]
[361924532,1747893042262,-430.0,0.00022465,2]
[361924533,1747893042271,-1316.17,0.00022465,2]
[361924534,1747893042281,-430.0,0.00022465,2]
[361924535,1747893042291,-430.0,0.00022465,2]
[361924536,1747893042300,-430.0,0.00022465,2]
[361924537,1747893042310,-430.0,0.00022465,2]
[361924538,1747893042320,-430.0,0.00022465,2]
[361924539,1747893042329,-430.0,0.00022465,2]
[361924540,1747893042339,-623.34,0.00022465,2]
[361924541,1747893042348,-430.0,0.00022465,2]
[361924542,1747893042358,-430.0,0.00022465,2]
[361924543,1747893042368,-430.0,0.00022465,2]
[361924544,1747893042379,-430.0,0.00022465,2]
[361924545,1747893042388,-430.0,0.00022465,2]
[361924546,1747893042399,-430.0,0.00022465,2]
[361924547,1747893042409,-266.68775798,0.00022465,2]
[361924548,1747893042418,-430.0,0.00022465,2]
[361924549,1747893042428,-430.0,0.00022465,2]
[361924550,1747893042437,-430.0,0.00022465,2]
[361924551,1747893042448,-327.67,0.00022465,2]
[361924552,1747893042457,-430.0,0.00022465,2]
[361924553,1747893042466,-430.0,0.00022465,2]
[361924554,1747893042478,-430.0,0.00022465,2]
[361924555,1747893042487,-430.0,0.00022465,2]
[361924557,1747893042497,-430.0,0.00022465,2]
[361924558,1747893042507,-430.0,0.00022465,2]
[361924559,1747893042516,-430.0,0.00022465,2]
[361924560,1747893042526,-430.0,0.00022465,2]
[361924561,1747893042535,-1444.16,0.00022465,2]
[361924562,1747893042544,-430.0,0.00022465,2]
[361924563,1747893042554,-430.0,0.00022465,2]
[361924564,1747893042564,-430.0,0.00022465,2]
[361924565,1747893042573,-391.92,0.00022465,2]
[361924566,1747893042583,-430.0,0.00022465,2]
[361924567,1747893042595,-430.0,0.00022465,2]
[361924568,1747893042605,-430.0,0.00022465,2]
[361924569,1747893042615,-2101.63,0.00022465,2]
[361924570,1747893042625,-430.0,0.00022465,2]
[361924571,1747893042634,-430.0,0.00022465,2]
[361924572,1747893042643,-430.0,0.00022465,2]
[361924573,1747893042653,-430.0,0.00022465,2]
[361924574,1747893042663,-430.0,0.00022465,2]
[361924576,1747893042672,-430.0,0.00022465,2]
[361924577,1747893042682,-430.0,0.00022465,2]
[361924578,1747893042692,-299.96,0.00022465,2]
[361924579,1747893042703,-430.0,0.00022465,2]
[361924581,1747893042712,-430.0,0.00022465,2]
[361924582,1747893042725,-430.0,0.00022465,2]
[361924584,1747893042735,-726.52,0.00022465,2]
[361924585,1747893042744,-430.0,0.00022465,2]
[361924586,1747893042755,-430.0,0.00022465,2]
[361924587,1747893042767,-494.08,0.00022465,2]
[361924588,1747893042776,-430.0,0.00022465,2]
[361924589,1747893042787,-430.0,0.00022465,2]
[361924590,1747893042797,-430.0,0.00022465,2]
[361924591,1747893042808,-430.0,0.00022465,2]
[361924592,1747893042818,-306.33,0.00022465,2]
[361924593,1747893042828,-430.0,0.00022465,2]
[361924594,1747893042837,-430.0,0.00022465,2]
[361924595,1747893042847,-430.0,0.00022465,2]
[361924596,1747893042856,-430.0,0.00022465,2]
[361924597,1747893042867,-430.0,0.00022465,2]
[361924598,1747893042876,-430.0,0.00022465,2]
[361924599,1747893042885,-430.0,0.00022465,2]
[361924600,1747893042895,-430.0,0.00022465,2]
[361924601,1747893042905,-430.0,0.00022465,2]
[361924602,1747893042915,-430.0,0.00022465,2]
[361924603,1747893042924,-430.0,0.00022465,2]
[361924604,1747893042933,-742.26,0.00022465,2]
[361924605,1747893042944,-430.0,0.00022465,2]
[361924606,1747893042954,-500.0,0.00022512,2]
[361924607,1747893042965,-502.79396182,0.00022522,2]
[361924608,1747893042979,-500.0,0.00022522,2]
[361924609,1747893042991,-500.0,0.00022522,2]
[361924610,1747893043002,-500.0,0.00022522,2]
[361924611,1747893043011,-500.0,0.00022522,2]
[361924612,1747893043021,-500.0,0.00022522,2]
[361924613,1747893043031,-500.0,0.00022522,2]
[361924614,1747893043041,-216.01084162,0.00022569,2]
[361924615,1747893043050,-500.0,0.00022624,2]
[361924616,1747893043061,-268.30906159,0.00022624,2]
[361924617,1747893043071,-500.0,0.00022636,2]
[361924618,1747893043081,-500.0,0.00022636,2]
[361924619,1747893043091,-500.0,0.00022636,2]
[361924620,1747893043100,-500.0,0.00022653,2]
[361924621,1747893043111,-500.0,0.00022655,2]
[361924622,1747893043120,-500.0,0.00022655,2]
[361924624,1747893043129,-343.63812651,0.00022655,2]
[361924625,1747893043140,-500.0,0.00022655,2]
[361924626,1747893043150,-500.0,0.00022655,2]
[361924627,1747893043160,-500.0,0.00022655,2]
[361924628,1747893043170,-500.0,0.00022658,2]
[361924629,1747893043181,-500.0,0.00022658,2]
[361924630,1747893043190,-500.0,0.00022658,2]
[361924631,1747893043200,-500.0,0.00022658,2]
[361924632,1747893043210,-500.0,0.00022658,2]
[361924633,1747893043219,-500.0,0.00022658,2]
[361924634,1747893043229,-500.0,0.00022658,2]
[361924635,1747893043239,-501.1616997,0.00022658,2]
[361924637,1747893043249,-270.23043266,0.00022658,2]
[361924639,1747893043259,-500.0,0.00022658,2]
[361924641,1747893043275,-500.0,0.00022658,2]
[361924643,1747893043288,-477.85468765,0.00022658,2]
[361924645,1747893043297,-500.0,0.00022658,2]
[361924647,1747893043307,-501.46384605,0.00022683,2]
[361924648,1747893043316,-500.0,0.00022683,2]
[361924649,1747893043325,-500.0,0.00022733,2]
[361924650,1747893043335,-500.0,0.00022733,2]
[361924651,1747893043346,-500.0,0.00022733,2]
[361924652,1747893043356,-430.0,0.00022739,2]
[361924653,1747893043366,-430.0,0.00022739,2]
[361924654,1747893043377,-430.0,0.00022739,2]
[361924655,1747893043386,-430.0,0.00022739,2]
[361924656,1747893043395,-430.0,0.00022739,2]
[361924657,1747893043406,-430.0,0.00022739,2]
[361924658,1747893043415,-564.19664354,0.00022739,2]
[361924659,1747893043425,-430.0,0.00022739,2]
[361924660,1747893043435,-430.0,0.00022739,2]
[361924661,1747893043444,-430.0,0.00022739,2]
[361924662,1747893043454,-430.0,0.00022739,2]
[361924663,1747893043463,-250.36,0.00022739,2]
[361924664,1747893043473,-430.0,0.00022739,2]
[361924665,1747893043482,-430.0,0.00022739,2]
[361924666,1747893043493,-430.0,0.00022739,2]
[361924667,1747893043502,-430.0,0.00022739,2]
[361924668,1747893043511,-542.06,0.00022739,2]
[361924669,1747893043521,-430.0,0.00022739,2]
[361924670,1747893043530,-459.14,0.00022739,2]
[361924671,1747893043539,-430.0,0.00022739,2]
[361924672,1747893043550,-430.0,0.00022739,2]
[361924673,1747893043560,-430.0,0.00022739,2]
[361924674,1747893043570,-430.0,0.00022739,2]
[361924675,1747893043580,-430.0,0.00022739,2]
[361924676,1747893043589,-430.0,0.00022739,2]
[361924677,1747893043600,-1305.16,0.00022739,2]
[361924678,1747893043610,-430.0,0.00022739,2]
[361924679,1747893043620,-430.0,0.00022739,2]
[361924680,1747893043630,-1235.94,0.00022739,2]
[361924681,1747893043640,-430.0,0.00022739,2]
[361924682,1747893043650,-430.0,0.00022739,2]
[361924683,1747893043660,-430.0,0.00022739,2]
[361924684,1747893043671,-430.0,0.00022739,2]
[361924685,1747893043681,-236.46398,0.00022739,2]
[361924686,1747893043795,-430.0,0.00022739,2]
[361924687,1747893043806,-430.0,0.00022739,2]
[361924688,1747893043817,-430.0,0.00022739,2]
[361924689,1747893043827,-430.0,0.00022739,2]
[361924690,1747893043836,-527.87,0.00022739,2]
[361924691,1747893043846,-430.0,0.00022739,2]
[361924692,1747893043856,-430.0,0.00022739,2]
[361924693,1747893043867,-430.0,0.00022739,2]
[361924694,1747893043876,-763.96,0.00022739,2]
[361924695,1747893043888,-15459.72,0.00022739,2]
[361924696,1747893043897,-348.08,0.00022739,2]
[361924697,1747893043908,-430.0,0.00022739,2]
[361924698,1747893043917,-430.0,0.00022739,2]
[361924699,1747893043927,-430.0,0.00022739,2]
[361924700,1747893043937,-430.0,0.00022739,2]
[361924701,1747893043946,-613.58,0.00022739,2]
[361924702,1747893043956,-183.72,0.00022739,2]
[361924703,1747893043965,-430.0,0.00022739,2]
[361924704,1747893043975,-430.0,0.00022739,2]
[361924705,1747893043985,-1316.17,0.00022739,2]
[361924706,1747893043994,-430.0,0.00022739,2]
[361924707,1747893044004,-266.59,0.00022739,2]
[361924708,1747893044013,-430.0,0.00022739,2]
[361924709,1747893044023,-430.0,0.00022739,2]
[361924710,1747893044033,-430.0,0.00022739,2]
[361924711,1747893044042,-623.34,0.00022739,2]
[361924712,1747893044052,-430.0,0.00022739,2]
[361924713,1747893044062,-430.0,0.00022739,2]
[361924714,1747893044071,-430.0,0.00022739,2]
[361924715,1747893044080,-430.0,0.00022739,2]
[361924716,1747893044090,-430.0,0.00022739,2]
[361924717,1747893044099,-531.27,0.00022739,2]
[361924718,1747893044110,-430.0,0.00022739,2]
[361924719,1747893044120,-430.0,0.00022739,2]
[361924720,1747893044131,-430.0,0.00022739,2]
[361924721,1747893044140,-430.0,0.00022739,2]
[361924722,1747893044149,-307.07,0.00022739,2]
[361924723,1747893044159,-430.0,0.00022739,2]
[361924724,1747893044168,-430.0,0.00022739,2]
[361924725,1747893044178,-430.0,0.00022739,2]
[361924726,1747893044188,-430.0,0.00022739,2]
[361924727,1747893044198,-430.0,0.00022739,2]
[361924728,1747893044208,-1444.16,0.00022739,2]
[361924729,1747893044218,-280.56,0.00022739,2]
[361924730,1747893044227,-430.0,0.00022739,2]
[361924731,1747893044236,-338.67794015,0.00022739,2]
[361924732,1747893044246,-430.0,0.00022739,2]
[361924733,1747893044256,-430.0,0.00022739,2]
[361924734,1747893044265,-430.0,0.00022739,2]
[361924735,1747893044275,-2101.63,0.00022739,2]
[361924736,1747893044286,-430.0,0.00022739,2]
[361924737,1747893044296,-305.82518055,0.00022739,2]
[361924738,1747893044306,-430.0,0.00022739,2]
[361924739,1747893044316,-430.0,0.00022739,2]
[361924740,1747893044327,-430.0,0.00022739,2]
[361924741,1747893044338,-430.0,0.00022739,2]
[361924742,1747893044347,-430.0,0.00022739,2]
[361924743,1747893044357,-430.0,0.00022739,2]
[361924744,1747893044366,-430.0,0.00022739,2]
[361924745,1747893044376,-726.52,0.00022739,2]
[361924746,1747893044386,-430.0,0.00022739,2]
[361924747,1747893044397,-430.0,0.00022739,2]
[361924748,1747893044407,-430.0,0.00022739,2]
[361924749,1747893044417,-430.0,0.00022739,2]
[361924750,1747893044427,-430.0,0.00022739,2]
[361924751,1747893044436,-430.0,0.00022739,2]
[361924752,1747893044447,-430.0,0.00022739,2]
[361924753,1747893044460,-430.0,0.00022739,2]
[361924754,1747893044470,-430.0,0.00022739,2]
[361924755,1747893044479,-430.0,0.00022739,2]
[361924756,1747893044489,-430.0,0.00022739,2]
[361924757,1747893044498,-430.0,0.00022739,2]
[361924758,1747893044508,-430.0,0.00022739,2]
[361924759,1747893044518,-430.0,0.00022739,2]
[361924760,1747893044528,-430.0,0.00022739,2]
[361924761,1747893044538,-742.26,0.00022739,2]
[361924762,1747893044548,-430.0,0.00022739,2]
[361924763,1747893044557,-449.93507567,0.00022749,2]
[361924764,1747893044567,-160.0,0.00022778,2]
[361924765,1747893044577,-160.0,0.00022778,2]
[361924766,1747893044588,-160.0,0.00022781,2]
[361924767,1747893044598,-894.64583333,0.00022781,2]
[361924768,1747893044608,-12645.25887003,0.00022781,2]
[361924769,1747893044617,-422.78357425,0.00022781,2]
[361924770,1747893044627,-160.0,0.00022781,2]
[361924771,1747893044637,-160.0,0.00022781,2]
[361924772,1747893044646,-1322.6634795,0.000229,8]
[361924773,1747893044656,-1000.0,0.00022973,2]
[361924774,1747893044666,-1000.0,0.00022973,2]
[361924775,1747893044676,-1000.0,0.00022973,2]
[361924776,1747893044687,-1000.0,0.00022973,2]
[361924777,1747893044699,-1000.0,0.00022973,2]
[361924778,1747893044709,-319.66727404,0.00023,11]
[361924779,1747893044719,-430.0,0.00023013,2]
[361924780,1747893044734,-155.86,0.00023013,2]
[361924781,1747893044743,-430.0,0.00023013,2]
[361924782,1747893044753,-430.0,0.00023013,2]
[361924783,1747893044763,-430.0,0.00023013,2]
[361924784,1747893044773,-405.38,0.00023013,2]
[361924785,1747893044782,-430.0,0.00023013,2]
[361924786,1747893044792,-430.0,0.00023013,2]
[361924787,1747893044803,-430.0,0.00023013,2]
[361924788,1747893044813,-430.0,0.00023013,2]
[361924789,1747893044823,-430.0,0.00023013,2]
[361924790,1747893044833,-430.0,0.00023013,2]
[361924791,1747893044842,-430.0,0.00023013,2]
[361924792,1747893044853,-460.28,0.00023013,2]
[361924793,1747893044863,-542.06,0.00023013,2]
[361924794,1747893044873,-430.0,0.00023013,2]
[361924795,1747893044883,-459.14,0.00023013,2]
[361924796,1747893044892,-430.0,0.00023013,2]
[361924797,1747893044902,-430.0,0.00023013,2]
[361924798,1747893044912,-430.0,0.00023013,2]
[361924799,1747893044921,-430.0,0.00023013,2]
[361924800,1747893044931,-430.0,0.00023013,2]
[361924801,1747893044940,-258.61,0.00023013,2]
[361924802,1747893044950,-1305.16,0.00023013,2]
[361924803,1747893044960,-430.0,0.00023013,2]
[361924804,1747893044969,-1235.94,0.00023013,2]
[361924805,1747893044978,-430.0,0.00023013,2]
[361924806,1747893044990,-430.0,0.00023013,2]
[361924807,1747893045000,-430.0,0.00023013,2]
[361924808,1747893045010,-430.0,0.00023013,2]
[361924809,1747893045019,-430.0,0.00023013,2]
[361924810,1747893045029,-430.0,0.00023013,2]
[361924811,1747893045040,-527.87,0.00023013,2]
[361924812,1747893045051,-430.0,0.00023013,2]
[361924813,1747893045061,-430.0,0.00023013,2]
[361924814,1747893045071,-763.96,0.00023013,2]
[361924815,1747893045082,-15459.72,0.00023013,2]
[361924816,1747893045092,-430.0,0.00023013,2]
[361924817,1747893045104,-430.0,0.00023013,2]
[361924818,1747893045114,-367.76,0.00023013,2]
[361924819,1747893045124,-430.0,0.00023013,2]
[361924820,1747893045133,-613.58,0.00023013,2]
[361924821,1747893045143,-430.0,0.00023013,2]
[361924822,1747893045153,-1316.17,0.00023013,2]
[361924823,1747893045163,-430.0,0.00023013,2]
[361924824,1747893045172,-430.0,0.00023013,2]
[361924825,1747893045181,-430.0,0.00023013,2]
[361924826,1747893045190,-623.34,0.00023013,2]
[361924827,1747893045200,-430.0,0.00023013,2]
[361924828,1747893045210,-430.0,0.00023013,2]
[361924829,1747893045220,-241.48126232,0.00023013,2]
[361924830,1747893045229,-430.0,0.00023013,2]
[361924831,1747893045239,-430.0,0.00023013,2]
[361924832,1747893045249,-381.84231023,0.00023013,2]
[361924833,1747893045258,-430.0,0.00023013,2]
[361924834,1747893045268,-430.0,0.00023013,2]
[361924835,1747893045278,-430.0,0.00023013,2]
[361924836,1747893045288,-430.0,0.00023013,2]
[361924837,1747893045297,-430.0,0.00023013,2]
[361924838,1747893045306,-430.0,0.00023013,2]
[361924839,1747893045316,-430.0,0.00023013,2]
[361924840,1747893045325,-1444.16,0.00023013,2]
[361924841,1747893045335,-430.0,0.00023013,2]
[361924842,1747893045344,-430.0,0.00023013,2]
[361924843,1747893045354,-430.0,0.00023013,2]
[361924844,1747893045363,-430.0,0.00023013,2]
[361924845,1747893045373,-2101.63,0.00023013,2]
[361924846,1747893045383,-430.0,0.00023013,2]
[361924847,1747893045394,-430.0,0.00023013,2]
[361924848,1747893045404,-430.0,0.00023013,2]
[361924849,1747893045413,-430.0,0.00023013,2]
[361924850,1747893045422,-430.0,0.00023013,2]
[361924851,1747893045432,-279.98,0.00023013,2]
[361924852,1747893045441,-390.79,0.00023013,2]
[361924853,1747893045451,-726.52,0.00023013,2]
[361924854,1747893045460,-430.0,0.00023013,2]
[361924855,1747893045470,-430.0,0.00023013,2]
[361924856,1747893045479,-430.0,0.00023013,2]
[361924857,1747893045489,-430.0,0.00023013,2]
[361924858,1747893045498,-430.0,0.00023013,2]
[361924859,1747893045508,-430.0,0.00023013,2]
[361924860,1747893045518,-430.0,0.00023013,2]
[361924861,1747893045527,-430.0,0.00023013,2]
[361924862,1747893045538,-430.0,0.00023013,2]
[361924863,1747893045547,-430.0,0.00023013,2]
[361924864,1747893045557,-430.0,0.00023013,2]
[361924865,1747893045566,-430.0,0.00023013,2]
[361924866,1747893045576,-255.91,0.00023013,2]
[361924867,1747893045585,-430.0,0.00023013,2]
[361924868,1747893045595,-430.0,0.00023013,2]
[361924869,1747893045605,-742.26,0.00023013,2]
[361924870,1747893045614,-430.0,0.00023013,2]
[361924871,1747893045624,-1322.66347941,0.00023038,8]
[361924872,1747893045634,-417.51151036,0.0002307,2]
[361924873,1747893045643,-563.04989174,0.0002307,2]
[361924874,1747893045653,-1000.0,0.0002307,2]
[361924875,1747893045663,-679.98910693,0.0002307,2]
[361924876,1747893045672,-1000.55966303,0.0002307,2]
[361924877,1747893045682,-1003.53593631,0.0002307,2]
[361924878,1747893045691,-449.93507567,0.00023133,2]
[361924879,1747893045701,-1000.0,0.00023172,2]
[361924880,1747893045711,-1322.66347941,0.00023176,8]
[361924881,1747893045721,-162.279822,0.00023182,2]
[361924882,1747893045734,-1003.37702798,0.00023184,2]
[361924883,1747893045744,-1016.29769984,0.00023184,2]
[361924884,1747893045754,-509.36773416,0.00023184,2]
[361924885,1747893045764,-1037.95865538,0.00023201,2]
[361924886,1747893045775,-1000.0,0.00023203,2]
[361924887,1747893045784,-1000.0,0.00023203,2]
[361924888,1747893045794,-358.90605806,0.00023203,2]
[361924889,1747893045805,-1000.0,0.00023203,2]
[361924890,1747893045815,-661.18075282,0.00023203,2]
[361924891,1747893045825,-1000.0,0.00023206,2]
[361924892,1747893045835,-1000.98860371,0.00023206,2]
[361924893,1747893045952,-1002.23869668,0.00023206,2]
[361924894,1747893045979,-1007.27790022,0.00023206,2]
[361924895,1747893045989,-396.84939606,0.00023206,2]
[361924896,1747893045999,-1000.8704939,0.00023206,2]
[361924897,1747893046009,-500.5047315,0.00023206,2]
[361924898,1747893046020,-1001.15011034,0.00023206,2]
[361924899,1747893046030,-1000.0,0.00023206,2]
[361924900,1747893046040,-1000.0,0.00023206,2]
[361924901,1747893046050,-1000.69058986,0.00023231,2]
[361924902,1747893046060,-5000.0,0.00023235,2]
[361924903,1747893046070,-638.20879264,0.00023281,2]
[361924904,1747893046080,-1001.12886528,0.00023281,2]
[361924905,1747893046089,-1000.0,0.00023281,2]
[361924906,1747893046099,-430.0,0.00023287,2]
[361924907,1747893046109,-430.0,0.00023287,2]
[361924908,1747893046119,-326.54794118,0.00023287,2]
[361924909,1747893046129,-430.0,0.00023287,2]
[361924910,1747893046139,-430.0,0.00023287,2]
[361924911,1747893046149,-430.0,0.00023287,2]
[361924912,1747893046163,-430.0,0.00023287,2]
[361924913,1747893046172,-430.0,0.00023287,2]
[361924914,1747893046182,-430.0,0.00023287,2]
[361924915,1747893046191,-430.0,0.00023287,2]
[361924916,1747893046202,-430.0,0.00023287,2]
[361924917,1747893046211,-542.06,0.00023287,2]
[361924918,1747893046221,-332.3888964,0.00023287,2]
[361924919,1747893046230,-459.14,0.00023287,2]
[361924920,1747893046239,-430.0,0.00023287,2]
[361924921,1747893046249,-430.0,0.00023287,2]
[361924922,1747893046259,-430.0,0.00023287,2]
[361924923,1747893046268,-568.76,0.00023287,2]
[361924924,1747893046278,-430.0,0.00023287,2]
[361924925,1747893046287,-1305.16,0.00023287,2]
[361924926,1747893046297,-430.0,0.00023287,2]
[361924927,1747893046306,-1235.94,0.00023287,2]
[361924928,1747893046316,-430.0,0.00023287,2]
[361924929,1747893046326,-430.0,0.00023287,2]
[361924930,1747893046335,-430.0,0.00023287,2]
[361924931,1747893046345,-430.0,0.00023287,2]
[361924932,1747893046354,-564.08,0.00023287,2]
[361924933,1747893046364,-430.0,0.00023287,2]
[361924934,1747893046374,-527.87,0.00023287,2]
[361924935,1747893046384,-430.0,0.00023287,2]
[361924936,1747893046394,-426.73,0.00023287,2]
[361924937,1747893046403,-763.96,0.00023287,2]
[361924938,1747893046413,-15459.72,0.00023287,2]
[361924939,1747893046424,-430.0,0.00023287,2]
[361924940,1747893046433,-430.0,0.00023287,2]
[361924941,1747893046443,-613.58,0.00023287,2]
[361924942,1747893046453,-430.0,0.00023287,2]
[361924943,1747893046463,-1316.17,0.00023287,2]
[361924944,1747893046473,-430.0,0.00023287,2]
[361924945,1747893046483,-430.0,0.00023287,2]
[361924946,1747893046493,-430.0,0.00023287,2]
[361924947,1747893046503,-623.34,0.00023287,2]
[361924948,1747893046513,-430.0,0.00023287,2]
[361924949,1747893046522,-430.0,0.00023287,2]
[361924950,1747893046533,-430.0,0.00023287,2]
[361924951,1747893046543,-430.0,0.00023287,2]
[361924952,1747893046552,-430.0,0.00023287,2]
[361924953,1747893046562,-430.0,0.00023287,2]
[361924954,1747893046571,-430.0,0.00023287,2]
[361924955,1747893046580,-430.0,0.00023287,2]
[361924956,1747893046590,-430.0,0.00023287,2]
[361924957,1747893046600,-430.0,0.00023287,2]
[361924958,1747893046609,-430.0,0.00023287,2]
[361924959,1747893046619,-1444.16,0.00023287,2]
[361924960,1747893046629,-430.0,0.00023287,2]
[361924961,1747893046639,-225.52,0.00023287,2]
[361924962,1747893046649,-430.0,0.00023287,2]
[361924963,1747893046659,-430.0,0.00023287,2]
[361924964,1747893046668,-2101.63,0.00023287,2]
[361924965,1747893046677,-430.0,0.00023287,2]
[361924966,1747893046688,-430.0,0.00023287,2]
[361924967,1747893046697,-430.0,0.00023287,2]
[361924968,1747893046707,-430.0,0.00023287,2]
[361924969,1747893046716,-430.0,0.00023287,2]
[361924970,1747893046727,-726.52,0.00023287,2]
[361924971,1747893046739,-452.41,0.00023287,2]
[361924972,1747893046749,-430.0,0.00023287,2]
[361924973,1747893046758,-430.0,0.00023287,2]
[361924974,1747893046770,-430.0,0.00023287,2]
[361924975,1747893046779,-550.88,0.00023287,2]
[361924976,1747893046789,-430.0,0.00023287,2]
[361924977,1747893046798,-283.64904902,0.00023287,2]
[361924978,1747893046935,-171.57095098,0.00023287,2]
[361924979,1747893046945,-430.0,0.00023287,2]
[361924980,1747893046955,-430.0,0.00023287,2]
[361924981,1747893046964,-430.0,0.00023287,2]
[361924982,1747893046973,-430.0,0.00023287,2]
[361924983,1747893046983,-430.0,0.00023287,2]
[361924984,1747893046992,-430.0,0.00023287,2]
[361924985,1747893047002,-742.26,0.00023287,2]
[361924986,1747893047011,-430.0,0.00023287,2]
[361924987,1747893047021,-989.92756488,0.00023287,2]
[361924988,1747893047069,-430.0,0.00021917,2]
[361924989,1747893047078,-430.0,0.00022191,2]
[361924990,1747893047087,-430.0,0.00022465,2]
[361924991,1747893047096,-2427.15380446,0.00023287,2]
[361924997,1747893559940,-5000.0,0.00021047,2]
[361924998,1747893559965,-250.0,0.00021259,2]
[361924999,1747893559988,-300.0,0.00021912,2]
[361925000,1747893560014,-300.0,0.00021913,2]
[361925001,1747893560036,-300.0,0.00021913,2]
[361925002,1747893560058,-500.0,0.00021913,2]
[361925003,1747893560081,-500.0,0.00021913,2]
[361925004,1747893560103,-477.0,0.00021913,2]
[361925014,1747893603349,7474.0,0.00013,2]
[361925017,1747893696402,-5000.0,0.00020837,2]
[361925018,1747893696426,-300.0,0.0002119,2]
[361925019,1747893696449,-300.0,0.0002119,2]
[361925020,1747893696472,-4317.0,0.00021191,2]
[361925022,1747893857863,571.365981,0.00027397,120]
[361925024,1747893940375,-3417.74066642,0.00020437,2]
[361925025,1747894006426,157.509291,0.00013699,2]
[361925026,1747894028150,-1582.25933358,0.00020437,2]
[361925027,1747894028177,-183.988725,0.00020644,2]
[361925028,1747894028204,-404.5760505,0.00020914,2]
[361925029,1747894028231,-300.0,0.00021189,2]
[361925030,1747894028259,-300.0,0.0002119,2]
[361925031,1747894028288,-300.0,0.0002119,2]
[361925032,1747894028315,-300.0,0.0002119,2]